bitfinex/quotes_SOLUSD_20240909
["timestamp","ask_amount","ask_price","bid_price","bid_amount"]
[1725913939151,5.8589,134.35,134.32,50.0]
[1725913939323,1.86079872,134.36,134.32,50.0]
[1725913939324,5.8589,134.33,134.32,50.0]
[1725913940946,5.8589,134.31,134.3,57.458]
[1725913942428,5.8589,134.31,134.3,50.0]
[1725913946648,5.8589,134.31,134.3,50.12549]
[1725913948041,5.8589,134.31,134.3,50.0]
[1725913951549,5.8589,134.31,134.3,50.12549]
[1725913952541,5.8589,134.31,134.3,51.61438302]
[1725913952749,5.8589,134.31,134.3,50.12549]
[1725913953133,5.8589,134.31,134.3,51.61433886]
[1725913953330,5.8589,134.31,134.3,95.12549]
[1725913953653,5.8589,134.31,134.3,115.12549]
[1725913965639,5.8589,134.33,134.32,50.0]
[1725913965838,5.8589,134.33,134.32,95.12549]
[1725913967762,5.8589,134.33,134.32,50.0]
[1725913973242,5.8589,134.33,134.32,50.12549]
[1725913973441,5.8589,134.33,134.32,95.12549]
[1725913975573,5.8589,134.33,134.32,50.0]
[1725913980775,5.8589,134.31,134.3,50.0]
[1725913982873,5.8589,134.31,134.3,105.57590178]
[1725913983053,5.8589,134.31,134.3,125.57590178]
[1725913984054,5.8589,134.33,134.32,50.12549]
[1725913984249,5.8589,134.33,134.32,125.57590178]
[1725913984968,5.8589,134.33,134.32,131.72803816]
[1725913987570,5.8589,134.33,134.32,125.57590178]
[1725913987965,5.8589,134.33,134.32,131.72735532]
[1725913988954,5.8589,134.35,134.34,50.12549]
[1725913989164,5.8589,134.35,134.34,95.12549]
[1725913989977,5.8589,134.35,134.34,105.57590178]
[1725913990191,5.8589,134.35,134.34,125.57590178]
[1725913990992,5.8589,134.37,134.36,50.12549]
[1725913991275,5.8589,134.37,134.36,95.12549]
[1725913992584,5.8589,134.37,134.36,125.57590178]
[1725913992975,5.8589,134.39,134.38,50.0]
[1725913993357,5.8589,134.39,134.38,95.12549]
[1725913994476,5.8589,134.39,134.38,50.12549]
[1725913995987,5.8589,134.39,134.38,95.12549]
[1725913996286,5.8589,134.39,134.38,50.12549]
[1725913998368,5.8589,134.39,134.38,95.12549]
[1725913999479,5.8589,134.41,134.4,50.12549]
[1725913999702,5.8589,134.43,134.42,50.0]
[1725913999998,5.8589,134.43,134.38,45.0]
[1725913999999,5.8589,134.39,134.38,50.0]
[1725914000778,5.8589,134.37,134.36,50.0]
[1725914000978,5.8589,134.37,134.36,70.0]
[1725914002491,5.8589,134.37,134.36,70.12549]
[1725914003696,5.8589,134.37,134.36,115.12549]
[1725914005274,5.8589,134.39,134.38,50.0]
[1725914005477,5.8589,134.39,134.38,95.12549]
[1725914012399,5.8589,134.39,134.38,105.57590178]
[1725914012603,5.8589,134.39,134.38,125.57590178]
[1725914014503,5.8589,134.43,134.42,50.0]
[1725914014875,5.8589,134.43,134.42,51.61306184]
[1725914015099,5.8589,134.43,134.42,50.12549]
[1725914015302,5.8589,134.43,134.42,95.12549]
[1725914015989,5.8589,134.43,134.42,115.12549]
[1725914019108,5.8589,134.43,134.42,70.12549]
[1725914019479,5.8589,134.43,134.42,50.0]
[1725914025314,5.8589,134.39,134.38,50.0]
[1725914025714,5.8589,134.37,134.36,50.0]
[1725914027194,5.8589,134.37,134.36,70.0]
[1725914028101,5.8589,134.37,134.36,70.12549]
[1725914031823,5.8589,134.37,134.36,70.0]
[1725914052633,5.8589,134.37,134.36,115.12549]
[1725914052839,5.8589,134.37,134.36,70.0]
[1725914053755,5.8589,134.37,134.36,50.0]
[1725914055148,5.8589,134.37,134.36,50.12549]
[1725914056652,5.8589,134.37,134.36,95.12549]
[1725914057930,5.8589,134.37,134.36,50.12549]
[1725914064859,5.8589,134.37,134.36,95.12549]
[1725914066342,5.8589,134.37,134.36,50.12549]
[1725914069554,5.8589,134.37,134.36,50.0]
[1725914069732,5.8589,134.35,134.34,50.0]
[1725914076337,5.8589,134.33,134.32,50.0]
[1725914076762,5.8589,134.33,134.29,50.0]
[1725914076939,5.8589,134.3,134.29,50.0]
[1725914085280,5.8589,134.3,134.27,50.0]
[1725914085579,5.8589,134.26,134.25,50.0]
[1725914086859,5.8589,134.24,134.23,50.0]
[1725914109995,5.8589,134.24,134.23,60.55928252]
[1725914110171,5.8589,134.24,134.23,105.55928252]
[1725914110374,5.8589,134.24,134.23,125.55928252]
[1725914116018,5.8589,134.24,134.23,125.43379252]
[1725914116191,5.8589,134.24,134.23,70.0]
[1725914116390,5.8589,134.24,134.23,50.0]
[1725914131707,5.8589,134.24,134.23,80.55928252]
[1725914131922,5.8589,134.28,134.27,50.0]
[1725914132098,5.8589,134.28,134.27,60.43379252]
[1725914132501,5.8589,134.28,134.27,60.55928252]
[1725914133810,5.8589,134.28,134.27,60.43379252]
[1725914135200,5.8589,134.3,134.29,50.12549]
[1725914135432,5.8589,134.3,134.29,80.55928252]
[1725914135729,5.8589,134.3,134.29,125.55928252]
[1725914137230,5.8589,134.32,134.31,50.0]
[1725914137433,5.8589,134.32,134.31,105.55928252]
[1725914137625,5.8589,134.32,134.31,125.55928252]
[1725914138109,5.8589,134.34,134.33,50.12549]
[1725914138309,5.8589,134.36,134.35,50.12549]
[1725914138528,5.8589,134.38,134.37,50.0]
[1725914138713,5.8589,134.38,134.37,60.43379252]
[1725914139306,6.4383,134.45,134.37,60.43379252]
[1725914139307,5.8589,134.4,134.39,50.0]
[1725914139647,5.8589,134.4,134.39,60.55928252]
[1725914139805,5.8589,134.4,134.39,126.2285553]
[1725914140004,5.8589,134.4,134.39,125.55928252]
[1725914140231,5.8589,134.4,134.39,115.0]
[1725914140434,5.8589,134.4,134.39,70.0]
[1725914141530,5.8589,134.4,134.39,50.0]
[1725914143132,5.8589,134.38,134.37,50.0]
[1725914148934,5.8589,134.36,134.35,50.0]
[1725914149219,5.8589,134.36,134.35,70.0]
[1725914149921,5.8589,134.36,134.35,50.0]
[1725914151066,5.8589,134.36,134.33,50.0]
[1725914151238,5.8589,134.34,134.33,50.0]
[1725914156927,5.8589,134.32,134.31,50.0]
[1725914166259,5.8589,134.3,134.29,50.0]
[1725914166445,5.8589,134.3,134.29,70.0]
[1725914166639,5.8589,134.3,134.29,50.0]
[1725914167543,5.8589,134.28,134.27,50.0]
[1725914169165,5.8589,134.28,134.27,70.0]
[1725914169944,5.8589,134.28,134.25,50.0]
[1725914170146,5.8589,134.26,134.25,50.0]
[1725914171150,5.8589,134.26,134.25,70.0]
[1725914171763,5.8589,134.26,134.25,115.12549]
[1725914172843,5.8589,134.26,134.25,70.12549]
[1725914175861,5.8589,134.26,134.25,115.12549]
[1725914177665,5.8589,134.26,134.25,115.0]
[1725914177869,5.8589,134.26,134.25,70.0]
[1725914179074,5.8589,134.24,134.23,50.0]
[1725914179571,5.8589,134.24,134.23,70.0]
[1725914179748,5.8589,134.24,134.23,80.43379252]
[1725914180353,5.8589,134.24,134.23,30.43379252]
[1725914180553,5.8589,134.24,134.23,80.43379252]
[1725914182063,5.8589,134.24,134.23,80.55928252]
[1725914182372,5.8589,134.24,134.23,125.55928252]
[1725914186672,5.8589,134.24,134.23,125.05928252]
[1725914191283,5.8589,134.24,134.23,124.55928252]
[1725914196169,5.8589,134.24,134.23,124.05928252]
[1725914198882,5.8589,134.24,134.23,68.5]
[1725914199060,5.8589,134.24,134.23,50.0]
[1725914199388,15.4416,134.27,134.21,50.0]
[1725914199389,5.8589,134.22,134.21,50.0]
[1725914201161,5.8589,134.22,134.21,50.12549]
[1725914201479,5.8589,134.24,134.23,50.0]
[1725914201787,5.8589,134.24,134.23,125.55928252]
[1725914203567,5.8589,134.24,134.23,115.0]
[1725914203793,5.8589,134.24,134.23,70.0]
[1725914211137,5.8589,134.24,134.23,80.43379252]
[1725914211261,5.8589,134.24,134.23,80.55928252]
[1725914211464,5.8589,134.26,134.25,50.0]
[1725914211771,5.8589,134.26,134.25,60.43379252]
[1725914212091,5.8589,134.26,134.25,50.0]
[1725914214483,5.8589,134.26,134.23,80.43379252]
[1725914214681,1.86190068,134.3,134.23,80.43379252]
[1725914214682,5.8589,134.24,134.23,50.0]
[1725914216789,5.8589,134.22,134.21,50.0]
[1725914217393,5.8589,134.24,134.23,50.0]
[1725914217589,5.8589,134.24,134.23,60.43379252]
[1725914221001,5.8589,134.24,134.23,50.0]
[1725914233016,5.8589,134.24,134.23,51.48819287]
[1725914233911,5.8589,134.24,134.23,51.61368287]
[1725914234415,5.8589,134.24,134.23,50.12549]
[1725914235419,5.8589,134.24,134.23,50.0]
[1725914238113,5.8589,134.24,134.23,50.12549]
[1725914238313,5.8589,134.27,134.26,50.12549]
[1725914238616,5.8589,134.29,134.28,50.12549]
[1725914238813,5.8589,134.29,134.28,60.55928252]
[1725914239695,5.8589,134.29,134.28,105.55928252]
[1725914239915,5.8589,134.31,134.3,50.0]
[1725914240089,5.8589,134.31,134.3,60.43379252]
[1725914242205,5.8589,134.31,134.3,50.0]
[1725914246501,5.8589,134.31,134.28,55.55928252]
[1725914246502,5.8589,134.29,134.28,50.0]
[1725914249423,5.8589,134.27,134.26,70.0]
[1725914249618,5.8589,134.27,134.26,50.0]
[1725914251198,5.8589,134.27,134.26,50.12549]
[1725914251403,5.8589,134.27,134.26,95.12549]
[1725914252011,5.8589,134.27,134.26,50.0]
[1725914257111,5.8589,134.27,134.26,95.12549]
[1725914257313,5.8589,134.27,134.26,50.0]
[1725914262522,5.8589,134.25,134.24,50.0]
[1725914264609,5.8589,134.25,134.24,50.12549]
[1725914264934,5.8589,134.25,134.24,125.55928252]
[1725914265108,5.8589,134.27,134.26,50.0]
[1725914265311,5.8589,134.27,134.26,60.43379252]
[1725914266534,5.8589,134.27,134.26,50.0]
[1725914269121,15.8556,134.32,134.24,50.0]
[1725914269122,5.8589,134.25,134.24,50.0]
[1725914295972,5.8589,134.23,134.22,50.0]
[1725914296336,5.8589,134.2,134.19,50.0]
[1725914297549,5.8589,134.18,134.17,50.0]
[1725914301851,5.8589,134.18,134.17,60.43379252]
[1725914303065,5.8589,134.18,134.17,80.55928252]
[1725914303261,5.8589,134.18,134.17,125.55928252]
[1725914303771,5.8589,134.2,134.19,50.0]
[1725914304066,5.8589,134.2,134.19,60.55928252]
[1725914304649,5.8589,134.2,134.19,125.55928252]
[1725914304852,5.8589,134.22,134.21,50.0]
[1725914305064,5.8589,134.22,134.21,82.0488886]
[1725914305257,5.8589,134.22,134.21,127.0488886]
[1725914305661,5.8589,134.24,134.23,50.0]
[1725914305845,5.8589,134.24,134.23,105.55928252]
[1725914306050,5.8589,134.24,134.23,125.55928252]
[1725914308246,5.8589,134.24,134.23,131.44963736]
[1725914309160,5.8589,134.24,134.23,115.12549]
[1725914310647,5.8589,134.24,134.23,131.44963736]
[1725914318255,5.8589,134.26,134.25,50.0]
[1725914318480,5.8589,134.28,134.27,50.0]
[1725914318782,5.8589,134.3,134.29,50.0]
[1725914319160,5.8589,134.3,134.29,50.12549]
[1725914319361,5.8589,134.3,134.29,115.12549]
[1725914319680,5.8589,134.3,134.29,70.0]
[1725914320074,5.8589,134.3,134.29,50.0]
[1725914326158,5.8589,134.28,134.27,50.0]
[1725914326662,5.8589,134.28,134.27,50.12549]
[1725914329876,5.8589,134.28,134.27,50.0]
[1725914331358,5.8589,134.28,134.27,95.12549]
[1725914333077,5.8589,134.28,134.27,50.0]
[1725914333960,5.8589,134.28,134.27,50.12549]
[1725914334383,5.8589,134.28,134.27,95.12549]
[1725914340204,5.8589,134.28,134.27,105.5691811]
[1725914342874,5.8589,134.28,134.27,50.0]
[1725914346176,5.8589,134.28,134.27,60.4436911]
[1725914352601,5.8589,134.28,134.27,50.0]
[1725914355287,5.8589,134.28,134.27,51.61408492]
[1725914355488,5.8589,134.33,134.32,50.12549]
[1725914355806,5.8589,134.35,134.34,50.0]
[1725914356595,5.8589,134.35,134.34,60.4436911]
[1725914357012,5.8589,134.35,134.34,50.0]
[1725914358685,7.77477081,134.36,134.35,0.12549]
[1725914358906,5.8589,134.37,134.36,50.0]
[1725914359090,5.8589,134.37,134.36,95.12549]
[1725914360902,5.8589,134.39,134.38,50.0]
[1725914361112,5.8589,134.39,134.38,51.47415862]
[1725914361497,5.8589,134.39,134.38,51.59964862]
[1725914365512,5.8589,134.39,134.38,50.12549]
[1725914365814,5.8589,134.39,134.38,50.0]
[1725914376920,5.8589,134.37,134.36,50.0]
[1725914377216,5.8589,134.35,134.34,50.0]
[1725914378219,5.8589,134.33,134.32,50.0]
[1725914378612,5.8589,134.33,134.32,70.0]
[1725914379501,5.8589,134.33,134.32,50.0]
[1725914379920,5.8589,134.31,134.3,50.0]
[1725914381739,5.8589,134.29,134.28,50.0]
[1725914382111,5.8589,134.27,134.26,50.0]
[1725914387326,5.8589,134.23,134.22,50.0]
[1725914390733,5.8589,134.23,134.22,50.12549]
[1725914396037,5.8589,134.23,134.22,95.12549]
[1725914400226,5.8589,134.23,134.22,105.57805695]
[1725914401637,5.8589,134.25,134.24,50.0]
[1725914401843,5.8589,134.25,134.24,105.57805695]
[1725914402143,15.9337,134.32,134.24,105.57805695]
[1725914402144,5.8589,134.27,134.26,50.12549]
[1725914402346,5.8589,134.27,134.26,105.57805695]
[1725914405255,5.8589,134.27,134.26,125.57805695]
[1725914406349,5.8589,134.29,134.28,50.0]
[1725914406530,5.8589,134.29,134.28,60.57805695]
[1725914421967,5.8589,134.29,134.28,105.57805695]
[1725914423067,5.8589,134.31,134.3,50.12549]
[1725914423267,5.8589,134.33,134.32,50.12549]
[1725914423480,5.8589,134.33,134.32,60.57805695]
[1725914426084,5.8589,134.35,134.34,50.12549]
[1725914426305,5.8589,134.37,134.36,50.12549]
[1725914426586,5.8589,134.37,134.36,60.57805695]
[1725914426786,5.8589,134.37,134.36,105.57805695]
[1725914430376,5.8589,134.37,134.36,60.45256695]
[1725914430587,5.8589,134.37,134.36,60.57805695]
[1725914430880,5.8589,134.37,134.36,105.57805695]
[1725914435596,5.8589,134.37,134.36,125.57805695]
[1725914439483,5.8589,134.39,134.38,50.0]
[1725914439802,5.8589,134.39,134.38,105.57805695]
[1725914441293,5.8589,134.39,134.38,55.57805695]
[1725914441497,5.8589,134.39,134.38,105.57805695]
[1725914450605,5.8589,134.39,134.38,105.45256695]
[1725914450817,5.8589,134.39,134.38,60.45256695]
[1725914452009,5.8589,134.39,134.38,59.95256695]
[1725914453105,5.8589,134.39,134.38,61.28343691]
[1725914453284,5.8589,134.39,134.38,106.28343691]
[1725914459010,5.8589,134.41,134.4,50.12549]
[1725914459316,5.8589,134.41,134.4,105.57805695]
[1725914462814,5.8589,134.41,134.4,60.45256695]
[1725914465900,5.8589,134.41,134.4,105.57805695]
[1725914468096,5.8589,134.41,134.4,125.57805695]
[1725914472197,5.8589,134.43,134.42,50.12549]
[1725914472398,5.8589,134.43,134.42,105.57805695]
[1725914476619,5.8589,134.43,134.42,125.57805695]
[1725914479006,5.8589,134.45,134.44,50.0]
[1725914479237,5.8589,134.45,134.44,105.57805695]
[1725914480036,5.8589,134.47,134.46,50.12549]
[1725914480214,5.8589,134.47,134.46,106.17296133]
[1725914480411,5.8589,134.47,134.46,105.57805695]
[1725914480613,5.8589,134.47,134.46,106.17347971]
[1725914481213,5.8589,134.47,134.46,105.57805695]
[1725914481415,5.8589,134.49,134.48,50.12549]
[1725914481642,5.8589,134.49,134.48,105.57805695]
[1725914486021,5.8589,134.49,134.48,95.12549]
[1725914487314,5.8589,134.49,134.48,50.12549]
[1725914488337,5.8589,134.49,134.48,50.0]
[1725914495750,5.8589,134.47,134.46,50.0]
[1725914495922,5.8589,134.47,134.46,50.12549]
[1725914496527,5.8589,134.47,134.46,95.12549]
[1725914501651,5.8589,134.49,134.48,50.0]
[1725914501954,5.8589,134.49,134.48,105.57805695]
[1725914513180,5.8589,134.51,134.5,50.12549]
[1725914513349,5.8589,134.53,134.52,50.12549]
[1725914513548,5.8589,134.53,134.52,105.57805695]
[1725914513753,5.8589,134.55,134.54,50.0]
[1725914513977,5.8589,134.55,134.54,105.57805695]
[1725914514359,5.8589,134.55,134.54,125.57805695]
[1725914515589,0.8769482,134.59,134.56,50.12549]
[1725914515590,5.8589,134.57,134.56,50.12549]
[1725914515754,5.8589,134.57,134.56,105.57805695]
[1725914517881,6.7358482,134.59,134.58,50.12549]
[1725914518077,6.7358482,134.59,134.58,125.57805695]
[1725914518582,5.8589,134.61,134.6,50.0]
[1725914518792,5.8589,134.61,134.6,105.57805695]
[1725914520463,5.8589,134.61,134.6,50.12549]
[1725914520787,5.8589,134.61,134.6,50.0]
[1725914521881,5.8589,134.61,134.6,50.12549]
[1725914522079,5.8589,134.61,134.6,50.0]
[1725914533868,5.8589,134.61,134.6,50.12549]
[1725914534069,5.8589,134.61,134.6,95.12549]
[1725914534504,5.8589,134.61,134.6,115.12549]
[1725914535766,5.8589,134.63,134.62,50.0]
[1725914535968,5.8589,134.63,134.62,105.57805695]
[1725914549184,5.8589,134.63,134.62,95.12549]
[1725914549383,5.8589,134.65,134.64,50.12549]
[1725914549583,5.8589,134.65,134.64,105.57805695]
[1725914551610,5.8589,134.65,134.64,125.57805695]
[1725914554003,5.8589,134.65,134.64,70.0]
[1725914554205,5.8589,134.65,134.64,50.0]
[1725914555408,5.8589,134.65,134.64,50.12549]
[1725914560611,5.8589,134.65,134.64,50.0]
[1725914560979,5.8589,134.65,134.64,50.12549]
[1725914561210,5.8589,134.65,134.64,60.57805695]
[1725914569116,5.8589,134.65,134.64,50.12549]
[1725914570090,5.8589,134.65,134.64,60.57805695]
[1725914570291,5.8589,134.65,134.64,105.57805695]
[1725914570497,5.8589,134.65,134.64,125.57805695]
[1725914571493,5.8589,134.65,134.64,127.06297121]
[1725914572598,5.8589,134.65,134.64,125.57805695]
[1725914579211,5.8589,134.65,134.64,125.45256695]
[1725914580406,5.8589,134.65,134.64,115.12549]
[1725914586216,5.8589,134.63,134.62,50.0]
[1725914587494,5.8589,134.63,134.61,50.0]
[1725914593723,7.71595756,134.63,134.61,50.0]
[1725914596531,5.8589,134.6,134.57,50.0]
[1725914596842,5.8589,134.56,134.55,50.0]
[1725914597307,17.54159019,134.59,134.53,50.0]
[1725914597308,5.8589,134.54,134.53,50.0]
[1725914605630,5.8589,134.54,134.53,50.12549]
[1725914605834,15.6841,134.59,134.55,50.12549]
[1725914605835,5.8589,134.56,134.55,50.12549]
[1725914606033,5.8589,134.58,134.57,50.0]
[1725914606240,5.8589,134.58,134.57,50.12549]
[1725914606544,5.8589,134.58,134.57,95.12549]
[1725914608626,5.8589,134.58,134.57,115.12549]
[1725914610257,5.8589,134.58,134.57,125.57805695]
[1725914623242,5.8589,134.58,134.57,115.12549]
[1725914634281,5.8589,134.58,134.57,121.263492]
[1725914640373,5.8589,134.58,134.57,115.12549]
[1725914640687,5.8589,134.58,134.57,121.26345897]
[1725914641391,5.8589,134.58,134.57,70.0]
[1725914641592,5.8589,134.58,134.57,50.0]
[1725914643503,5.8589,134.56,134.55,50.0]
[1725914652518,5.8589,134.56,134.52,6.14032591]
[1725914652519,5.8589,134.54,134.53,50.0]
[1725914655321,5.8589,134.52,134.51,50.0]
[1725914656213,8.12751016,134.57,134.49,56.1408808]
[1725914656214,5.8589,134.5,134.49,56.1408808]
[1725914656510,5.8589,134.5,134.49,70.0]
[1725914657014,5.8589,134.5,134.49,76.1408808]
[1725914657728,5.8589,134.5,134.49,76.2663708]
[1725914657885,5.8589,134.5,134.49,70.12549]
[1725914658204,5.8589,134.5,134.49,76.2663708]
[1725914659215,5.8589,134.5,134.49,70.12549]
[1725914661615,5.8589,134.5,134.49,50.0]
[1725914663414,1.85862551,134.52,134.44,8.01815884]
[1725914663415,5.8589,134.48,134.47,50.0]
[1725914665522,5.8589,134.46,134.45,50.0]
[1725914666727,5.8589,134.46,134.45,50.12549]
[1725914668025,5.8589,134.46,134.45,50.0]
[1725914681938,5.8589,134.46,134.45,50.12549]
[1725914682128,5.8589,134.46,134.45,95.12549]
[1725914682533,5.8589,134.46,134.45,115.12549]
[1725914688323,5.8589,134.48,134.47,50.12549]
[1725914688537,5.8589,134.48,134.47,105.57805695]
[1725914692649,5.8589,134.48,134.47,95.12549]
[1725914692855,5.8589,134.48,134.47,50.12549]
[1725914693931,5.8589,134.48,134.47,50.0]
[1725914694526,5.8589,134.48,134.47,50.12549]
[1725914694850,5.8589,134.48,134.47,95.12549]
[1725914704053,5.8589,134.48,134.47,50.12549]
[1725914704227,5.8589,134.48,134.47,50.0]
[1725914704647,1.85869337,134.52,134.45,50.0]
[1725914704648,5.8589,134.46,134.45,50.0]
[1725914708162,5.8589,134.44,134.43,50.0]
[1725914708840,5.8589,134.44,134.43,96.61283208]
[1725914709351,5.8589,134.44,134.43,95.12549]
[1725914709541,5.8589,134.44,134.43,115.12549]
[1725914709749,5.8589,134.46,134.45,50.12549]
[1725914710059,5.8589,134.46,134.45,105.57805695]
[1725914710362,5.8589,134.46,134.45,95.12549]
[1725914710748,5.8589,134.46,134.45,50.0]
[1725914710946,5.8589,134.44,134.43,50.0]
[1725914718050,5.8589,134.44,134.41,50.0]
[1725914718266,5.8589,134.42,134.41,50.0]
[1725914729782,5.8589,134.42,134.41,50.12549]
[1725914729953,5.8589,134.42,134.41,95.12549]
[1725914730677,5.8589,134.42,134.41,50.0]
[1725914743192,5.8589,134.42,134.39,50.0]
[1725914743398,5.8589,134.38,134.37,50.0]
[1725914743606,5.8589,134.38,134.37,80.45256695]
[1725914743996,5.8589,134.38,134.37,60.45256695]
[1725914744488,5.8589,134.4,134.39,50.0]
[1725914745295,5.8589,134.4,134.39,50.12549]
[1725914745469,5.8589,134.4,134.39,60.57805695]
[1725914746372,5.8589,134.4,134.39,60.45256695]
[1725914750497,5.8589,134.4,134.39,105.57805695]
[1725914750693,5.8589,134.4,134.39,125.57805695]
[1725914757102,5.8589,134.4,134.39,115.12549]
[1725914757278,5.8589,134.4,134.39,70.12549]
[1725914758099,5.8589,134.4,134.39,70.0]
[1725914762199,15.4662,134.46,134.41,50.0]
[1725914762200,5.8589,134.42,134.41,50.0]
[1725914762500,5.8589,134.42,134.41,60.57805695]
[1725914762804,5.8589,134.42,134.41,80.57805695]
[1725914763017,5.8589,134.42,134.41,125.57805695]
[1725914763899,5.8589,134.47,134.46,50.0]
[1725914770311,5.8589,134.47,134.46,60.57805695]
[1725914770712,5.8589,134.47,134.46,125.57805695]
[1725914771419,5.8589,134.47,134.46,70.12549]
[1725914774151,5.8589,134.47,134.46,50.0]
[1725914774908,5.8589,134.47,134.44,50.0]
[1725914775095,5.8589,134.45,134.44,50.0]
[1725914775507,5.8589,134.43,134.42,60.45256695]
[1725914776404,5.8589,134.43,134.42,80.45256695]
[1725914776811,5.8589,134.43,134.42,70.0]
[1725914779016,5.8589,134.43,134.42,70.12549]
[1725914779214,5.8589,134.43,134.42,115.12549]
[1725914779402,5.8589,134.45,134.44,50.12549]
[1725914779596,5.8589,134.47,134.46,50.12549]
[1725914779795,5.8589,134.47,134.46,60.57805695]
[1725914780302,5.8589,134.47,134.46,125.57805695]
[1725914783114,5.8589,134.49,134.48,50.0]
[1725914783424,5.8589,134.49,134.48,60.57805695]
[1725914784019,5.8589,134.49,134.48,105.57805695]
[1725914785121,5.8589,134.49,134.48,125.57805695]
[1725914790916,5.8589,134.49,134.48,70.12549]
[1725914791234,5.8589,134.49,134.48,80.57805695]
[1725914794236,5.8589,134.49,134.48,80.45256695]
[1725914794816,5.8589,134.49,134.48,50.0]
[1725914795638,5.8589,134.47,134.46,60.45256695]
[1725914795842,5.8589,134.47,134.46,80.45256695]
[1725914796426,15.4261,134.54,134.49,50.0]
[1725914796665,15.4261,134.54,134.53,60.45256695]
[1725914796839,6.0365,134.58,134.53,60.45256695]
[1725914797030,6.0365,134.58,134.55,50.0]
[1725914797537,1.85791862,134.57,134.53,50.0]
[1725914797728,6.0365,134.58,134.55,50.0]
[1725914797934,1.85801521,134.57,134.52,60.45256695]
[1725914798234,6.0365,134.58,134.54,50.0]
[1725914798418,7.89449993,134.58,134.54,50.0]
[1725914798830,6.0365,134.58,134.54,50.0]
[1725914799334,1.85799329,134.57,134.52,50.0]
[1725914800517,6.0365,134.58,134.52,50.0]
[1725914800945,6.0365,134.58,134.47,21.4639]
[1725914800946,6.0365,134.58,134.54,50.0]
[1725914802813,1.85794922,134.57,134.53,10.45256695]
[1725914803020,1.85794922,134.57,134.52,50.0]
[1725914803244,6.0365,134.58,134.54,50.0]
[1725914803544,1.8582255,134.57,134.54,50.0]
[1725914803756,1.8582255,134.57,134.52,50.0]
[1725914804321,1.8582255,134.57,134.54,50.0]
[1725914806525,1.8582255,134.57,134.52,50.0]
[1725914807518,6.0365,134.58,134.52,50.0]
[1725914807927,15.4091,134.56,134.5,50.0]
[1725914808117,1.85844408,134.55,134.5,50.0]
[1725914808440,1.85843379,134.54,134.5,50.0]
[1725914809137,1.85843379,134.54,134.48,50.0]
[1725914809351,15.4091,134.52,134.48,50.0]
[1725914809524,17.26795695,134.52,134.48,50.0]
[1725914809917,15.4091,134.52,134.48,50.0]
[1725914814327,15.4091,134.52,134.5,50.0]
[1725914816140,21.9112,134.57,134.5,50.0]
[1725914816643,21.9112,134.57,134.52,50.0]
[1725914816845,1.85819629,134.56,134.54,50.0]
[1725914817139,1.85819629,134.56,134.52,50.0]
[1725914817346,21.9112,134.57,134.52,50.0]
[1725914821839,1.85825505,134.56,134.49,60.45256695]
[1725914822035,1.85825505,134.56,134.49,50.0]
[1725914822237,1.85825505,134.56,134.47,50.0]
[1725914822451,15.9633,134.55,134.47,50.0]
[1725914822648,1.85877378,134.54,134.47,50.0]
[1725914822959,1.85877378,134.54,134.49,50.0]
[1725914823259,1.85877378,134.54,134.47,50.0]
[1725914824536,1.85877378,134.54,134.49,50.0]
[1725914824852,15.9633,134.55,134.49,50.0]
[1725914827939,1.85877538,134.54,134.47,50.0]